[Event "XXIV San Miguel 2018"]
[Site "Trevias"]
[Date "2018.09.17"]
[Round "1"]
[White "Castro Quijano, Eduardo"]
[Black "Clemente Llamero, Roberto"]
[Result "0-1"]
[ECO "B10"]
[WhiteElo "1766"]
[BlackElo "2086"]
[Annotator "NA RC"]
[PlyCount "88"]
[EventDate "2018.09.17"]
[EventType "swiss"]
[EventCountry "ESP"]
[SourceTitle "playchess.com"]
[Source "ChessBase"]
[SourceQuality "1"]
[TimeControl "5400+30"]

1. e4 c6 2. Nf3 d5 3. Nc3 dxe4 4. Nxe4 Nf6 5. Qe2 Nxe4 6. Qxe4 Nd7 7. d4 Nf6 8. Qd3 Qd5 9. c4 Qe4+ 10. Be3 g6 11. O-O-O Bg7 12. Qxe4 Nxe4 13. Bd3 Nf6 14. Rhe1 O-O 15. Bc2 Bg4 16. d5 cxd5 17. cxd5 Rfd8 18. Bb3 Bf5 19. Rd4 Rac8+ 20. Kd1 Ne4 21. Rb4 Bxb2 22. Rxb7 Nc3+ 23. Kd2 Nxd5 24. Ke2 Bf6 25. Rxa7 Nxe3 26. Kxe3 Bc2 27. Bxc2 Rxc2 28. Re2 Rc3+ 29. Kf4 Rdc8 30. h4 R8c4+ 31. Re4 Rc5 32. a4 Ra3 33. Kg3 Rc2 34. Rg4 h5 35. Rb4 Raa2 36. Ra8+ Kg7 37. Rbb8 Rxf2 38. Rg8+ Kh7 39. Ng5+ Bxg5 40. hxg5 Rxg2+ 41. Kf4 Rg4+ 42. Kf3 Rxg5 43. Raf8 Rf5+ 44. Kg3 Rxa4 0-1

[Event "XXIV San Miguel 2018"]
[Site "Trevias"]
[Date "2018.09.18"]
[Round "2"]
[White "Alvarez Fernandez, Enrique"]
[Black "Garcia Gonzalez, Fernando"]
[Result "1-0"]
[ECO "A50"]
[WhiteElo "2303"]
[BlackElo "2027"]
[Annotator "ChessBase"]
[PlyCount "57"]
[EventDate "2018.09.17"]
[EventType "swiss"]
[EventCountry "ESP"]
[SourceTitle "playchess.com"]
[Source "ChessBase"]
[SourceQuality "1"]
[TimeControl "5400+30"]

1. d4 Nf6 2. c4 Nc6 3. Nf3 e6 4. Nc3 Bb4 5. Qc2 Bxc3+ 6. Qxc3 Ne4 7. Qc2 f5 8. g3 Nb4 9. Qa4 c5 10. Bg2 O-O 11. O-O d6 12. a3 Bd7 13. Qb3 Nc6 14. dxc5 Na5 15. Qc2 Qe8 16. b3 d5 17. Bd2 Nxb3 18. Qxb3 Ba4 19. Qb2 dxc4 20. Ne5 Bc6 21. Nxc6 Qxc6 22. Rac1 Qxc5 23. Bxe4 fxe4 24. Bb4 Qb5 25. Qd4 Rfc8 26. Qxe4 Rc6 27. Rfd1 a5 28. Bc3 Rac8 29. Rd7 1-0

[Event "XXIV San Miguel 2018"]
[Site "Trevias"]
[Date "2018.09.18"]
[Round "2"]
[White "Cuevas Fernandez, Jose Alberto"]
[Black "Crespo Gavilan, Abel"]
[Result "1-0"]
[ECO "A04"]
[WhiteElo "2173"]
[BlackElo "1992"]
[Annotator "ChessBase"]
[PlyCount "57"]
[EventDate "2018.09.17"]
[EventType "swiss"]
[EventCountry "ESP"]
[SourceTitle "playchess.com"]
[Source "ChessBase"]
[SourceQuality "1"]
[TimeControl "5400+30"]

1. Nf3 {[%emt 0:00:00]} c5 {[%emt 0:00:27]} 2. c4 {[%emt 0:00:01]} Nf6 {[%emt 0:00:38]} 3. Nc3 {[%emt 0:00:08]} b6 {[%emt 0:01:11]} 4. e4 {[%emt 0:00:55]} d6 {[%emt 0:00:35]} 5. d4 {[%emt 0:03:06]} cxd4 {[%emt 0:00:06]} 6. Nxd4 {[%emt 0:00:02]} Bb7 {[%emt 0:00:31]} 7. f3 {[%emt 0:00:20]} a6 {[%emt 0:02:57]} 8. Be3 {[%emt 0:00:21]} Nbd7 {[%emt 0:00:43]} 9. g4 {[%emt 0:00:48]} h6 {[%emt 0:03:03]} 10. h4 {[%emt 0:02:07]} Qc7 {[%emt 0:08:05]} 11. Rc1 e6 12. Be2 {[%emt 0:08:17]} Be7 {[%emt 0:06:03]} 13. Kf2 {[%emt 0:02:20]} Nf8 {[%emt 0:26:36]} 14. b4 Qd8 15. g5 {[%emt 0:27:52]} N6d7 {[%emt 0:01:25]} 16. f4 {[%emt 0:07:40]} g6 {[%emt 0:04:19]} 17. h5 e5 {[%emt 0:04:54]} 18. hxg6 {[%emt 0:06:42]} Nxg6 19. Ne6 {[%emt 0:07:09]} fxe6 {[%emt 0:06:03]} 20. Bh5 O-O {[%emt 0:00:12]} 21. Bxg6 {[%emt 0:00:43]} exf4 22. Bh7+ {[%emt 0:11:09]} Kg7 {[%emt 0:04:04]} 23. Bd4+ e5 24. Rxh6 {[%emt 0:06:13]} f3 {[%emt 0:12:03]} 25. Qh1 {[%emt 0:01:05]} exd4 {[%emt 0:02:39]} 26. Rg6+ {[%emt 0:00:12]} Kf7 {[%emt 0:00:21]} 27. Qh5 {[%emt 0:00:01]} Bxg5 {[%emt 0:03:03]} 28. Rxg5+ {[%emt 0:00:28]} Ke7 {[%emt 0:00:39]} 29. Rg7+ 1-0

[Event "XXIV San Miguel 2018"]
[Site "Trevias"]
[Date "2018.09.18"]
[Round "2"]
[White "Cuevas Fernandez, Manuel A."]
[Black "Gonzalez Guedes, Iyan"]
[Result "1/2-1/2"]
[ECO "E73"]
[WhiteElo "2113"]
[BlackElo "1927"]
[Annotator "NA"]
[PlyCount "30"]
[EventDate "2018.09.17"]
[EventType "swiss"]
[EventCountry "ESP"]
[SourceTitle "playchess.com"]
[Source "ChessBase"]
[SourceQuality "1"]
[TimeControl "5400+30"]

1. d4 Nf6 2. c4 g6 3. Nc3 Bg7 4. e4 d6 5. Be2 O-O 6. g4 c5 7. g5 Ne8 8. d5 e6 9. h4 exd5 10. cxd5 f6 11. Nf3 fxg5 12. Bxg5 Qb6 {[#]} 13. Qd2 $11 (13. Bd2 $1 $16) 13... Bg4 14. Ng1 Bxe2 15. Ngxe2 Nd7 1/2-1/2

[Event "XXIV San Miguel 2018"]
[Site "Trevias"]
[Date "2018.09.18"]
[Round "2"]
[White "Clemente Llamero, Roberto"]
[Black "Bombin Pinera, Dionisio"]
[Result "1/2-1/2"]
[ECO "C10"]
[WhiteElo "2086"]
[BlackElo "1887"]
[Annotator "NA RC"]
[PlyCount "20"]
[EventDate "2018.09.17"]
[EventType "swiss"]
[EventCountry "ESP"]
[SourceTitle "playchess.com"]
[Source "ChessBase"]
[SourceQuality "1"]
[TimeControl "5400+30"]

1. e4 e6 2. d4 d5 3. Nd2 dxe4 4. Nxe4 Bd7 5. Nf3 Bc6 6. Bd3 Nd7 7. O-O Ngf6 8. Ng3 Be7 9. Re1 O-O 10. c3 Re8 1/2-1/2

[Event "XXIV San Miguel 2018"]
[Site "Trevias"]
[Date "2018.09.18"]
[Round "2"]
[White "Estrada Martinez, Cesar"]
[Black "Perez Nunez, Saul"]
[Result "*"]
[ECO "D02"]
[WhiteElo "2010"]
[BlackElo "2182"]
[Annotator "NA"]
[PlyCount "49"]
[EventDate "2018.09.17"]
[EventType "swiss"]
[EventCountry "ESP"]
[SourceTitle "playchess.com"]
[Source "ChessBase"]
[SourceQuality "1"]
[TimeControl "5400+30"]

1. d4 {[%emt 0:01:05]} d5 {[%emt 0:00:00]} 2. Nf3 {[%emt 0:00:09]} e6 {[%emt 0:00:00]} 3. Bf4 {[%emt 0:01:15]} Nf6 {[%emt 0:00:00]} 4. e3 {[%emt 0:00:17]} c5 {[%emt 0:00:00]} 5. c3 {[%emt 0:01:43]} Nc6 {[%emt 0:00:08]} 6. Bd3 {[%emt 0:00:23]} Be7 {[%emt 0:02:20] LiveBook: 11 Games} 7. h3 {D02: 1 d4 d5 2 Nf3 sidelines, including 2...Nf6 3 g3 and 2...Nf6 3 Bf4} (7. Nbd2 Nh5 8. Bg3 g6 9. Qe2 O-O 10. Rd1 Qb6 11. Nf1 Bd7 12. Bh4 Bxh4 13. Nxh4 cxd4 14. g4 Nf6 15. exd4 e5 16. dxe5 Bxg4 {0-1 (31) Niedbala,B (2020)-Rodshtein,M (2699) Katowice 2017}) 7... h6 {[%emt 0:00:43]} 8. Nbd2 {[%emt 0:01:50]} cxd4 {[%emt 0:00:03]} 9. exd4 {[%emt 0:01:22] White is slightly better.} Bd6 {[%emt 0:00:09]} 10. Bxd6 {[%emt 0:01:25]} Qxd6 {[%emt 0:00:05]} 11. O-O {[%emt 0:00:36]} O-O {[%emt 0:00:06]} 12. Qe2 $146 {[%emt 0:03:00]} ({Predecessor:} 12. Re1 Re8 {1-0 (47) Do Prado,H (1754)-Abdalla,U (1320) Florianopolis 2018}) 12... Qc7 {[%emt 0:08:00]} 13. Rfe1 a6 {[%emt 0:00:09]} 14. Ne5 {[%emt 0:03:33]} Nxe5 {[%emt 0:00:02]} 15. Qxe5 {[%emt 0:01:34]} Qxe5 {[%emt 0:00:34]} 16. Rxe5 {[%emt 0:02:58]} Bd7 {[%emt 0:01:48]} 17. Nf3 {[%emt 0:12:04]} b5 18. Re2 Rfc8 {[%emt 0:04:05]} 19. Ne5 {[%emt 0:00:59]} Be8 20. f4 a5 {[%emt 0:30:09]} 21. f5 {[%emt 0:13:55]} b4 {[%emt 0:02:01]} 22. fxe6 {[%emt 0:04:05]} fxe6 {[%emt 0:01:04]} 23. c4 dxc4 {[%emt 0:00:17]} 24. Bxc4 {[%emt 0:01:03]} Nd5 25. Rf2 {[%emt 0:17:14]} *

[Event "XXIV San Miguel 2018"]
[Site "Trevias"]
[Date "2018.09.18"]
[Round "2"]
[White "Alvarez Perez, Adan"]
[Black "Blazquez Lopez, Berna"]
[Result "1/2-1/2"]
[ECO "D00"]
[WhiteElo "1950"]
[BlackElo "2134"]
[Annotator "ChessBase"]
[PlyCount "47"]
[EventDate "2018.09.17"]
[EventType "swiss"]
[EventCountry "ESP"]
[SourceTitle "playchess.com"]
[Source "ChessBase"]
[SourceQuality "1"]
[TimeControl "5400+30"]

1. d4 d5 {[%emt 0:00:00]} 2. Bg5 {[%emt 0:00:00]} f6 3. Bf4 {[%emt 0:02:43]} c5 {[%emt 0:00:15]} 4. e3 {[%emt 0:03:50]} Nc6 {[%emt 0:06:14]} 5. Bd3 {[%emt 0:07:46]} g6 {[%emt 0:04:20]} 6. c3 e5 7. dxe5 {[%emt 0:04:48]} fxe5 {[%emt 0:00:48]} 8. Bg3 {[%emt 0:00:18]} Bg7 {[%emt 0:15:54]} 9. h4 {[%emt 0:17:12]} Nf6 {[%emt 0:06:13]} 10. Nd2 {[%emt 0:06:39]} e4 {[%emt 0:02:57]} 11. Bb5 O-O {[%emt 0:09:20]} 12. Nb3 {[%emt 0:03:31]} Qe7 {[%emt 0:03:41]} 13. Nh3 {[%emt 0:12:20]} Bg4 14. Be2 Bxe2 {[%emt 0:01:36]} 15. Qxe2 {[%emt 0:10:16]} c4 16. Nd2 {[%emt 0:03:01]} Nh5 {[%emt 0:01:55]} 17. Bf4 Be5 {[%emt 0:04:56]} 18. g3 {[%emt 0:06:35]} b5 {[%emt 0:00:38]} 19. a3 {[%emt 0:01:32]} a5 {[%emt 0:00:25]} 20. Rb1 {[%emt 0:01:48]} b4 {[%emt 0:00:27]} 21. Nxc4 bxc3 {[%emt 0:02:26]} 22. Bxe5 {[%emt 0:03:12]} Nxe5 {[%emt 0:00:08]} 23. Nxe5 {[%emt 0:00:06]} Qxe5 {[%emt 0:00:25]} 24. bxc3 {[%emt 0:01:07]} 1/2-1/2

[Event "XXIV San Miguel 2018"]
[Site "Trevias"]
[Date "2018.09.19"]
[Round "3"]
[White "Blazquez Lopez, Berna"]
[Black "Alvarez Fernandez, Enrique"]
[Result "1/2-1/2"]
[ECO "D37"]
[WhiteElo "2134"]
[BlackElo "2303"]
[Annotator "NA"]
[PlyCount "51"]
[EventDate "2018.09.17"]
[EventType "swiss"]
[EventCountry "ESP"]
[SourceTitle "playchess.com"]
[Source "ChessBase"]
[SourceQuality "1"]
[TimeControl "5400+30"]

{[%evp 8,51,22,32767,32767,32767,32767,32767,30,37,34,39,36,32767,36,34,44,22,36,40,54,56,55,42,52,49,50,8,35,32767,18,7,32767,32767,32767,32767,32767,0,0,0,0,32767,32767,0,32767,0]} 1. d4 {[%emt 0:05:21]} e6 {[%emt 0:00:00]} 2. c4 {[%emt 0:00:39]} Nf6 {[%emt 0:02:10]} 3. Nf3 {[%emt 0:00:07]} d5 {[%emt 0:00:36]} 4. Nc3 {[%emt 0:00:11]} Be7 {[%emt 0:09:18]} 5. Bf4 {[%emt 0:00:41]} O-O {[%emt 0:02:32]} 6. e3 {[%emt 0:00:05]} c5 {[%emt 0:02:14]} 7. dxc5 {[%emt 0:00:22]} Bxc5 {[%emt 0:00:40]} 8. cxd5 {[%emt 0:00:17]} exd5 {[%emt 0:01:39]} 9. Be2 {[%emt 0:00:33]} Nc6 {[%emt 0:04:12]} 10. O-O {[%emt 0:00:13]} Be6 {[%emt 0:07:58]} 11. Rc1 {[%emt 0:00:55]} a6 {[%emt 0:05:15] LiveBook: 17 Games D37: Queen's Gambit Declined: 5 Bf4} (11... Rc8 12. Nb5 Ne4 13. Nfd4 g5 14. Bg3 Nxd4 15. Nxd4 Qf6 16. Nxe6 fxe6 17. Bg4 Bb6 18. Qe2 Nxg3 19. hxg3 Qe5 20. Rxc8 Rxc8 {½-½ (30) Lupulescu,C (2634)-Agamaliev,G (2493) Konya 2017}) 12. a3 {[%emt 0:01:56]} Be7 {[%emt 0:11:51]} 13. Nd4 {[%emt 0:06:07]} Bd6 $146 {[%emt 0:16:00]} ({Predecessor:} 13... Rc8 14. Bf3 Nxd4 15. Qxd4 Rc4 16. Qd3 Qc8 17. Ne2 Rd8 18. b3 Rc6 19. Rxc6 bxc6 20. b4 Bf5 21. Qc3 Be4 22. Nd4 {0-1 (50) Neferanovic,I (1689)-Saric,K (2237) Djakovo 2011}) 14. Bxd6 {[%emt 0:09:39]} Qxd6 {[%emt 0:00:03]} 15. Nxc6 {[%emt 0:12:52]} bxc6 {[%emt 0:00:18]} 16. Na4 {[%emt 0:00:15]} Nd7 {[%emt 0:05:53]} 17. Qc2 {[%emt 0:02:45]} Rfc8 {[%emt 0:00:37]} 18. Nc5 {[%emt 0:00:38]} a5 {[%emt 0:01:57]} 19. Rfd1 {[%emt 0:02:59]} Nxc5 {[%emt 0:02:01]} 20. Qxc5 {[%emt 0:00:31]} Qxc5 {[%emt 0:00:11]} 21. Rxc5 {[%emt 0:00:04]} Kf8 {[%emt 0:01:21]} 22. b4 {[%emt 0:03:01]} axb4 {[%emt 0:01:14]} 23. axb4 $11 {[%emt 0:00:06]} Ke7 {[%emt 0:01:19]} 24. b5 {[%emt 0:01:44]} cxb5 {[%emt 0:00:26]} 25. Rxc8 {[%emt 0:00:33]} Rxc8 {[%emt 0:00:06]} 26. Bxb5 {[%emt 0:00:15]} 1/2-1/2

[Event "XXIV San Miguel 2018"]
[Site "Trevias"]
[Date "2018.09.19"]
[Round "3"]
[White "Acebal Muniz, Antonio"]
[Black "Estrada Martinez, Cesar"]
[Result "1/2-1/2"]
[ECO "D46"]
[WhiteElo "2105"]
[BlackElo "2010"]
[Annotator "NA"]
[PlyCount "23"]
[EventDate "2018.09.17"]
[EventType "swiss"]
[EventCountry "ESP"]
[SourceTitle "playchess.com"]
[Source "ChessBase"]
[SourceQuality "1"]
[TimeControl "5400+30"]

1. Nf3 d5 2. d4 Nf6 3. c4 c6 4. Nc3 e6 5. e3 Bd6 6. Bd3 Nbd7 7. e4 dxe4 8. Nxe4 Nxe4 9. Bxe4 Nf6 10. Bc2 O-O 11. O-O {[%emt 0:07:08]} h6 {[%emt 0:11:40]} 12. b3 {[%emt 0:00:57]} 1/2-1/2

[Event "XXIV San Miguel 2018"]
[Site "Trevias"]
[Date "2018.09.19"]
[Round "3"]
[White "Crespo Gavilan, Abel"]
[Black "Almirante Olay, Ruben"]
[Result "1-0"]
[ECO "B38"]
[WhiteElo "1992"]
[BlackElo "1809"]
[Annotator "NA RC"]
[PlyCount "89"]
[EventDate "2018.09.17"]
[EventType "swiss"]
[EventCountry "ESP"]
[SourceTitle "playchess.com"]
[Source "ChessBase"]
[SourceQuality "1"]
[TimeControl "5400+30"]

{[%evp 15,89,52,32767,32767,32767,32767,87,80,69,77,57,58,67,52,95,90,91,-214,63,47,32767,32767,25,26,31,38,32767,32767,32767,32767,32767,29,76,79,82,32767,32767,84,114,114,106,32767,120,32767,136,103,101,32767,32767,32767,32767,123,32767,32767,32767,32767,32767,32767,32767,32767,32767,32767,32767,32767,32767,562,932,667,868,521,878,729,32767,32767,751,540]} 1. c4 {[%emt 0:00:00]} c5 {[%emt 0:21:39]} 2. Nf3 {[%emt 0:00:00]} Nc6 {[%emt 0:00:21]} 3. d4 {[%emt 0:00:00]} cxd4 {[%emt 0:01:14]} 4. Nxd4 g6 {[%emt 0:01:59]} 5. e4 {[%emt 0:00:01]} Bg7 {[%emt 0:00:09]} 6. Be3 {[%emt 0:00:07]} Nf6 {[%emt 0:00:22]} 7. Nc3 {[%emt 0:00:07]} d6 {[%emt 0:00:18]} 8. Be2 {[%emt 0:00:39]} O-O {[%emt 0:00:24]} 9. O-O {[%emt 0:03:51]} Ne5 {[%emt 0:02:34]} 10. f3 {[%emt 0:01:17]} Bd7 {[%emt 0:01:46] B38: Sicilian: Maroczy Bind with 5...Bg7 and 7...0-0} 11. Qd2 {[%emt 0:00:52] LiveBook: 9 Games} (11. Rc1 a6 12. Qd2 Rc8 13. b3 Re8 14. Rc2 Nc6 15. Rb1 Nb4 16. Rcc1 Nh5 17. Bf1 Nc6 18. Nde2 f5 19. Nd5 fxe4 20. Bb6 exf3 21. gxf3 Rc7 22. Bxc7 {1-0 (39) Dudukin,I (2396)-Zaremba,A (2348) chess.com INT 2017}) 11... Qa5 {[%emt 0:01:29]} 12. Rfc1 $146 {[%emt 0:05:13]} ({Predecessor:} 12. Nd5 Qd8 13. Rac1 Rc8 14. Rfd1 b6 15. Bh6 Ne8 16. Bxg7 Kxg7 17. f4 e6 18. fxe5 exd5 19. cxd5 dxe5 20. Rxc8 Qxc8 {1-0 (42) Opitz,C (2020)-Schatz,C (2179) Dresden 2009}) 12... Rfc8 {[%emt 0:02:16]} 13. b3 {[%emt 0:01:54]} Nc6 {[%emt 0:04:12]} 14. a3 {[%emt 0:02:18]} Qe5 {[%emt 0:06:00]} 15. Nxc6 {[%emt 0:13:24]} bxc6 16. Bd4 $2 {[%emt 0:03:49] [#]} (16. b4 $16) 16... Qa5 $2 {[%emt 0:00:47]} (16... Nxe4 $1 $19 {[%mdl 512]} 17. fxe4 (17. Nxe4 Qxd4+) 17... Qxd4+ 18. Qxd4 Bxd4+ 19. Kh1 a5) 17. b4 {[%emt 0:00:34]} Qd8 18. Qe3 {[%emt 0:03:24]} Be6 {[%emt 0:10:57]} (18... c5 $1 $15 19. Bxf6 Bxf6 20. bxc5 Rxc5) 19. Rd1 {[%emt 0:03:49]} Nd7 {[%emt 0:05:40]} 20. Bxg7 {[%emt 0:07:23]} Kxg7 {[%emt 0:04:17]} 21. Na4 Qc7 {[%emt 0:01:13]} 22. f4 {[%emt 0:08:07]} Nb6 23. Nb2 {[%emt 0:05:01]} c5 {[%emt 0:03:15]} (23... Nd7 $11) 24. b5 {[%emt 0:06:22]} f6 {[%emt 0:04:29]} 25. a4 {[%emt 0:01:40]} a5 {[%emt 0:00:30]} 26. Qc3 {[%emt 0:01:53]} Rd8 {[%emt 0:05:22]} 27. Bf3 {[%emt 0:02:23]} Ra7 {[%emt 0:03:28]} 28. Rd3 {[%emt 0:01:38]} Bf7 {[%emt 0:05:54]} 29. Rad1 Rd7 {[%emt 0:02:02]} 30. Bg4 {[%emt 0:06:03]} Rd8 {[%emt 0:00:01]} 31. Bf3 {[%emt 0:07:30]} Rd7 {[%emt 0:00:22]} 32. h4 {[%emt 0:05:34]} h5 {[%emt 0:00:35]} 33. Be2 {[%emt 0:00:36]} d5 {[%emt 0:00:30]} 34. exd5 {[%emt 0:00:30]} Qxf4 {[%emt 0:00:14]} 35. g3 {[%emt 0:01:34]} Qb8 {[%emt 0:01:21]} 36. Rf1 {[%emt 0:01:36]} Rd6 {[%emt 0:01:52]} 37. Re3 {[%emt 0:01:31]} Be8 {[%emt 0:00:30]} 38. Bd1 {[%emt 0:00:30]} Bd7 {[%emt 0:00:03]} 39. Rxe7+ {[%emt 0:00:35]} Kf8 40. Rfe1 {[%emt 0:04:34]} (40. Rxf6+ $142 Kxe7 41. Qe5+ Be6 42. Rxe6+ Rxe6 43. Qxb8) 40... Nc8 {[%emt 0:02:07]} 41. R7e3 {[%emt 0:01:17]} Bf5 {[%emt 0:00:05]} 42. Bc2 {[%emt 0:00:55]} Bxc2 {[%emt 0:00:39]} 43. Qxc2 {[%emt 0:00:02]} Kf7 44. Qc3 {[%emt 0:01:08]} Nb6 $18 {[%emt 0:03:05]} (44... Re7 $142 45. Kg2 Qa7 46. Rxe7+ Nxe7) 45. Kg2 {[%emt 0:01:38]} 1-0

[Event "XXIV San Miguel 2018"]
[Site "Trevias"]
[Date "2018.09.19"]
[Round "3"]
[White "Oria Blasco, Alberto"]
[Black "Vergara Anton, Diego"]
[Result "1/2-1/2"]
[ECO "A14"]
[WhiteElo "1838"]
[BlackElo "2063"]
[Annotator "NA RC"]
[PlyCount "49"]
[EventDate "2018.09.17"]
[EventType "swiss"]
[EventCountry "ESP"]
[SourceTitle "playchess.com"]
[Source "ChessBase"]
[SourceQuality "1"]
[TimeControl "5400+30"]

{[%evp 8,48,25,4,28,-7,14,0,16,17,13,23,13,0,32767,32767,32767,32767,-49,32767,-47,32767,-27,-122,-118,-144,-163,-141,-134,-145,-92,32767,32767,32767,32767,-101,-114,-151,-118,-168,32767,32767,-182]} 1. Nf3 d5 2. c4 e6 3. g3 Nf6 4. Bg2 Be7 5. O-O O-O 6. b3 c5 7. cxd5 exd5 8. d4 Nc6 9. dxc5 Ne4 10. Bb2 {LiveBook: 70 Games} Bxc5 11. Bd4 $146 {D30: Queen's Gambit Declined: Systems without Nc3} ({Predecessor:} 11. e3 Qe7 12. Nc3 Rd8 13. Qc1 Be6 14. Qc2 Nxc3 15. Bxc3 d4 16. exd4 Nxd4 17. Nxd4 Bxd4 18. Bxd4 Rxd4 {½-½ (41) Artemiev,V (2673)-Gasanov,E (2488) Moscow 2016}) 11... Nxd4 12. Nxd4 Qf6 13. e3 Rd8 14. Nd2 Nc3 15. Qc2 ({White should play} 15. Qe1 $15) 15... Bxd4 16. exd4 Ne2+ ({But not} 16... Qxd4 17. Nf3 $15) 17. Kh1 Nxd4 18. Qb2 Qb6 19. Nf3 Nxf3 20. Bxf3 d4 21. Rfd1 Bf5 22. Rd2 d3 23. Rad1 Re8 24. Qa3 Rac8 $19 25. Qa4 1/2-1/2

[Event "XXIV San Miguel 2018"]
[Site "Trevias"]
[Date "2018.09.20"]
[Round "4"]
[White "Clemente Llamero, Roberto"]
[Black "Gonzalez Guedes, Iyan"]
[Result "1/2-1/2"]
[ECO "B51"]
[WhiteElo "2086"]
[BlackElo "1927"]
[Annotator "NA RC"]
[PlyCount "57"]
[EventDate "2018.09.17"]
[EventType "swiss"]
[EventCountry "ESP"]
[SourceTitle "playchess.com"]
[Source "ChessBase"]
[SourceQuality "1"]
[TimeControl "5400+30"]

{[%evp 14,57,20,30,32767,32767,32767,32767,32767,32767,32767,32767,32767,32767,32767,32767,32767,32767,32767,32767,32767,32767,40,-10,37,-25,0,-23,-7,-7,-10,-13,-7,-39,-42,-72,-28,-32,-16,-10,-15,-12,25,7,14,2]} 1. e4 c5 2. Nf3 d6 3. Bb5+ Nd7 4. O-O a6 5. Bd3 {B51: Sicilian: Moscow Variation (3 Bb5+) without 3...Bd7} b5 (5... Ngf6 6. Re1 g6 7. c3 Bg7 8. Bc2 O-O 9. d4 e5 10. a4 cxd4 11. cxd4 exd4 12. Nxd4 Nc5 {1-0 (33) Jakovenko,D (2748)-Nepomniachtchi,I (2768) Satka 2018}) 6. c3 Bb7 7. Re1 Ngf6 8. Bc2 Qc7 9. d3 g6 10. h3 $146 ({Predecessor:} 10. Bg5 Bg7 11. Qc1 h6 12. Bd2 Nb6 13. a4 Nxa4 14. Bxa4 bxa4 {1-0 (55) Bukojemski,A (2194)-Bates,R (2371) Basingstoke 2018}) 10... Bg7 11. Be3 c4 12. dxc4 Qxc4 13. Nbd2 Qc7 14. a4 O-O 15. axb5 axb5 16. Rxa8 Rxa8 17. Nd4 Qa5 (17... Ba6 $11) 18. f3 (18. b4 $14 Qd8 19. Nxb5) 18... d5 19. exd5 (19. b4 $14 Qa6 20. Bd3) 19... Nxd5 20. Bf2 e5 21. N4b3 Qc7 22. Bd3 b4 23. c4 Nf4 24. Bf1 Rd8 25. Qc2 Nf8 26. Ra1 N8e6 27. Ra7 Ra8 28. Rxa8+ Bxa8 29. c5 $11 1/2-1/2

[Event "XXIV San Miguel 2018"]
[Site "Trevias"]
[Date "2018.09.20"]
[Round "4"]
[White "Vergara Anton, Diego"]
[Black "Bombin Pinera, Dionisio"]
[Result "1/2-1/2"]
[ECO "A46"]
[WhiteElo "2063"]
[BlackElo "1887"]
[Annotator "NA"]
[PlyCount "45"]
[EventDate "2018.09.17"]
[EventType "swiss"]
[EventCountry "ESP"]
[SourceTitle "playchess.com"]
[Source "ChessBase"]
[SourceQuality "1"]
[TimeControl "5400+30"]

1. d4 {[%emt 0:00:00]} Nf6 {[%emt 0:00:00]} 2. Nf3 {[%emt 0:00:31]} d5 {[%emt 0:00:37]} 3. g3 Bf5 {[%emt 0:00:21]} 4. Bg2 e6 {[%emt 0:00:30]} 5. c4 {D02: Damenbauernspiele} Bxb1 {[%emt 0:00:30]} (5... c6 6. O-O Nbd7 7. Nc3 dxc4 8. a4 a5 9. Nh4 Bg4 10. h3 Bh5 11. f4 Nd5 12. Nf3 Bg6 13. Nh4 Bh5 14. Nf3 Bb4 15. Qc2 {0-1 (32) Shimanov,A (2639)-Adhiban,B (2689) Atlantic City 2016}) 6. Rxb1 c6 {[%emt 0:00:30]} 7. O-O Be7 {[%emt 0:00:30]} 8. Qb3 $146 ({Vorgänger:} 8. Qc2 Nbd7 9. b3 O-O 10. Bb2 Qc7 11. Nd2 Rfd8 12. e4 dxe4 13. Nxe4 Nxe4 14. Bxe4 {½-½ (41) Goncalves,I (2208)-De Souza,A (2107) Cuiaba 2016}) 8... Qb6 {[%emt 0:00:30]} 9. Qc2 O-O {[%emt 0:17:25]} 10. c5 Qa6 {[%emt 0:17:55]} 11. b4 {[%emt 0:13:12]} b6 {[%emt 0:01:03]} 12. Ne5 {[%emt 0:06:19]} bxc5 {[%emt 0:02:30]} 13. dxc5 {[%emt 0:00:36]} Nbd7 {[%emt 0:01:27]} 14. Nxd7 {[%emt 0:01:53]} Nxd7 {[%emt 0:06:21]} 15. Rd1 Ne5 {[%emt 0:06:51]} 16. e4 {[%emt 0:06:14]} Qc4 {[%emt 0:01:56]} 17. Qxc4 {[%emt 0:00:44]} Nxc4 {[%emt 0:00:03]} ({Besser ist} 17... dxc4 $14 18. Be3 Rad8) 18. exd5 {[%emt 0:02:36]} cxd5 {[%emt 0:03:27]} (18... exd5 $142 19. b5 Rab8) 19. Bf1 {[%emt 0:02:32]} Ne5 {[%emt 0:09:04]} 20. Ba6 {[%emt 0:03:02]} Rab8 {[%emt 0:02:02]} 21. Bf4 $18 {[%emt 0:06:50]} f6 22. Rdc1 Bd8 {[%emt 0:10:21]} 23. Kg2 {[%emt 0:10:45]} 1/2-1/2

[Event "XXIV San Miguel 2018"]
[Site "Trevias"]
[Date "2018.09.21"]
[Round "5"]
[White "Gonzalez Guedes, Iyan"]
[Black "Gutierrez Abarrategui, Luis"]
[Result "1/2-1/2"]
[ECO "B10"]
[WhiteElo "1927"]
[BlackElo "1872"]
[Annotator "NA"]
[PlyCount "26"]
[EventDate "2018.09.17"]
[EventType "swiss"]
[EventCountry "ESP"]
[SourceTitle "playchess.com"]
[Source "ChessBase"]
[SourceQuality "1"]
[TimeControl "5400+30"]

{[%evp 8,24,12,4,0,11,0,4,32767,26,32767,29,62,74,114,97,32767,85,101]} 1. e4 {[%emt 0:00:00]} c6 {[%emt 0:00:00]} 2. c4 {[%emt 0:00:00]} d5 {[%emt 0:04:59]} 3. exd5 {[%emt 0:00:00]} cxd5 {[%emt 0:00:14]} 4. cxd5 Nf6 {[%emt 0:00:17]} 5. Nc3 {[%emt 0:00:07]} Nxd5 {[%emt 0:01:08]} 6. Nf3 {[%emt 0:00:10]} Nc6 {[%emt 0:00:39]} 7. Bb5 {[%emt 0:01:19]} Nxc3 {[%emt 0:06:30]} 8. bxc3 {[%emt 0:01:49]} Bd7 {[%emt 0:04:17]} 9. O-O {[%emt 0:01:51] LiveBook: 9 Games} e6 {[%emt 0:01:25]} 10. d4 {[%emt 0:03:15]} Qa5 {[%emt 0:04:02]} ({Lieber} 10... Bd6 $14) 11. Qe2 {[%emt 0:03:52]} a6 {[%emt 0:02:08]} 12. Bd3 {[%emt 0:07:56]} Be7 $16 {[%emt 0:09:01]} 13. c4 {[%emt 0:07:07]} O-O 1/2-1/2